[Event "Titled Tuesday Blitz December 20 Early 2022"]
[White "Zampronha, Wladimir Camilo"]
[Black "JoliyRoger"]
[WhiteFideId "2103087"]
[WhiteElo "2176"]
[BlackElo "2429"]
[Result "0-1"]
[Round "02"]
[TimeControl "180+2"]
[Date "2022.12.20"]
[WhiteClock "0:00:35"]
[BlackClock "0:00:32"]

1. e4 {[%clk 0:03:00]}  c6 {[%clk 0:02:59]} 2. d4 {[%clk 0:03:00]}  d5 {[%clk 0:02:59]} 3. e5 {[%clk 0:03:00]}  Bf5 {[%clk 0:02:59]} 4. Nf3 {[%clk 0:03:00]}  e6 {[%clk 0:02:53]} 5. Be2 {[%clk 0:03:01]}  Nd7 {[%clk 0:02:54]} 6. O-O {[%clk 0:02:58]}  h6 {[%clk 0:02:54]} 7. c4 {[%clk 0:02:56]}  Ne7 {[%clk 0:02:46]} 8. Nc3 {[%clk 0:02:56]}  a6 {[%clk 0:02:45]} 9. Re1 {[%clk 0:02:55]}  dxc4 {[%clk 0:02:43]} 10. Bxc4 {[%clk 0:02:54]}  Nd5 {[%clk 0:02:44]} 11. Ne4 {[%clk 0:02:49]}  Be7 {[%clk 0:02:42]} 12. Bd2 {[%clk 0:02:39]}  O-O {[%clk 0:02:42]} 13. Rc1 {[%clk 0:02:39]}  Rc8 {[%clk 0:02:41]} 14. Bd3 {[%clk 0:02:32]}  Bg4 {[%clk 0:02:24]} 15. h3 {[%clk 0:02:24]}  Bh5 {[%clk 0:02:24]} 16. Ng3 {[%clk 0:02:19]}  Bg6 {[%clk 0:02:19]} 17. Bxg6 {[%clk 0:02:18]}  fxg6 {[%clk 0:02:20]} 18. Qc2 {[%clk 0:02:08]}  Kh7 {[%clk 0:02:10]} 19. Re4 {[%clk 0:02:03]}  c5 {[%clk 0:02:00]} 20. Rg4 {[%clk 0:02:02]}  Qe8 {[%clk 0:02:00]} 21. Qe4 {[%clk 0:01:55]}  Qf7 {[%clk 0:01:50]} 22. h4 {[%clk 0:01:44]}  cxd4 {[%clk 0:01:30]} 23. Rxc8 {[%clk 0:01:42]}  Rxc8 {[%clk 0:01:30]} 24. h5 {[%clk 0:01:43]}  Nf8 {[%clk 0:01:23]} 25. hxg6+ {[%clk 0:01:37]}  Nxg6 {[%clk 0:01:24]} 26. Nxd4 {[%clk 0:00:58]}  Bc5 {[%clk 0:01:13]} 27. Nf3 {[%clk 0:00:55]}  Be7 {[%clk 0:00:45]} 28. Nh4 {[%clk 0:00:44]}  Bxh4 {[%clk 0:00:44]} 29. Rxh4 {[%clk 0:00:45]}  b5 {[%clk 0:00:41]} 30. Nh5 {[%clk 0:00:40]}  Rc4 {[%clk 0:00:36]} 31. Nf6+ {[%clk 0:00:35]}  Nxf6 {[%clk 0:00:32]} 0-1


[Site "https://www.chess.com"]

[Event "Titled Tuesday Blitz December 20 Early 2022"]
[White "aidenzhouu"]
[Black "WizardSA"]
[WhiteElo "2386"]
[BlackElo "2098"]
[Result "0-1"]
[Round "02"]
[TimeControl "180+2"]
[Date "2022.12.20"]
[WhiteClock "0:00:35"]
[BlackClock "0:00:07"]

1. d4 {[%clk 0:03:00]}  d5 {[%clk 0:02:59]} 2. Bf4 {[%clk 0:02:58]}  Nf6 {[%clk 0:02:58]} 3. e3 {[%clk 0:02:59]}  e6 {[%clk 0:02:58]} 4. Nd2 {[%clk 0:03:00]}  c5 {[%clk 0:02:58]} 5. c3 {[%clk 0:02:59]}  Nc6 {[%clk 0:02:58]} 6. Bd3 {[%clk 0:02:59]}  Bd6 {[%clk 0:02:58]} 7. Bxd6 {[%clk 0:03:00]}  Qxd6 {[%clk 0:02:59]} 8. f4 {[%clk 0:03:00]}  O-O {[%clk 0:02:57]} 9. Ngf3 {[%clk 0:03:01]}  Ne7 {[%clk 0:02:34]} 10. O-O {[%clk 0:02:58]}  Ng6 {[%clk 0:02:29]} 11. Ne5 {[%clk 0:02:56]}  Nd7 {[%clk 0:02:18]} 12. Qh5 {[%clk 0:02:50]}  Ndxe5 {[%clk 0:02:10]} 13. fxe5 {[%clk 0:02:50]}  Qe7 {[%clk 0:02:09]} 14. Nf3 {[%clk 0:02:43]}  f5 {[%clk 0:02:00]} 15. exf6 {[%clk 0:02:35]}  Rxf6 {[%clk 0:01:55]} 16. Ne5 {[%clk 0:02:33]}  Nf8 {[%clk 0:01:35]} 17. Rxf6 {[%clk 0:02:13]}  gxf6 {[%clk 0:01:35]} 18. Ng4 {[%clk 0:02:06]}  Qg7 {[%clk 0:01:30]} 19. Rf1 {[%clk 0:02:02]}  f5 {[%clk 0:01:23]} 20. Nh6+ {[%clk 0:01:57]}  Kh8 {[%clk 0:01:22]} 21. Nf7+ {[%clk 0:01:54]}  Kg8 {[%clk 0:01:22]} 22. Ne5 {[%clk 0:01:54]}  c4 {[%clk 0:01:10]} 23. Bc2 {[%clk 0:01:43]}  Ng6 {[%clk 0:01:09]} 24. Rf3 {[%clk 0:01:31]}  Bd7 {[%clk 0:00:58]} 25. Nxd7 {[%clk 0:01:29]}  Qxd7 {[%clk 0:00:57]} 26. g4 {[%clk 0:01:16]}  Rf8 {[%clk 0:00:45]} 27. gxf5 {[%clk 0:01:12]}  exf5 {[%clk 0:00:44]} 28. Rxf5 {[%clk 0:00:51]}  Rxf5 {[%clk 0:00:32]} 29. Qxf5 {[%clk 0:00:51]}  Qd8 {[%clk 0:00:15]} 30. Qe6+ {[%clk 0:00:49]}  Kg7 {[%clk 0:00:14]} 31. Bxg6 {[%clk 0:00:48]}  hxg6 {[%clk 0:00:14]} 32. Qe5+ {[%clk 0:00:48]}  Kh7 {[%clk 0:00:13]} 33. e4 {[%clk 0:00:46]}  dxe4 {[%clk 0:00:12]} 34. Qxe4 {[%clk 0:00:47]}  Qg5+ {[%clk 0:00:12]} 35. Kf2 {[%clk 0:00:44]}  Qd2+ {[%clk 0:00:11]} 36. Qe2 {[%clk 0:00:43]}  Qf4+ {[%clk 0:00:11]} 37. Kg2 {[%clk 0:00:39]}  Qg5+ {[%clk 0:00:10]} 38. Kf3 {[%clk 0:00:37]}  Qh5+ {[%clk 0:00:09]} 39. Ke3 {[%clk 0:00:37]}  Qg5+ {[%clk 0:00:07]} 40. Kf2 {[%clk 0:00:37]}  Qf4+ {[%clk 0:00:06]} 41. Qf3 {[%clk 0:00:28]}  Qxh2+ {[%clk 0:00:05]} 42. Ke3 {[%clk 0:00:26]}  Qg1+ {[%clk 0:00:05]} 43. Kf4 {[%clk 0:00:23]}  Qc1+ {[%clk 0:00:05]} 44. Ke5 {[%clk 0:00:23]}  Qxb2 {[%clk 0:00:04]} 45. Qf7+ {[%clk 0:00:19]}  Kh6 {[%clk 0:00:04]} 46. Qxc4 {[%clk 0:00:20]}  Qb6 {[%clk 0:00:02]} 47. d5 {[%clk 0:00:19]}  Qe3+ {[%clk 0:00:02]} 48. Kd6 {[%clk 0:00:18]}  Qb6+ {[%clk 0:00:02]} 49. Kd7 {[%clk 0:00:18]}  Kg7 {[%clk 0:00:02]} 50. Qd4+ {[%clk 0:00:18]}  Qxd4 {[%clk 0:00:01]} 51. cxd4 {[%clk 0:00:19]}  g5 {[%clk 0:00:02]} 52. Kc7 {[%clk 0:00:19]}  g4 {[%clk 0:00:03]} 53. d6 {[%clk 0:00:20]}  g3 {[%clk 0:00:04]} 54. d7 {[%clk 0:00:21]}  g2 {[%clk 0:00:04]} 55. d8=Q {[%clk 0:00:22]}  g1=Q {[%clk 0:00:04]} 56. Qd7+ {[%clk 0:00:21]}  Kh6 {[%clk 0:00:04]} 57. Qd6+ {[%clk 0:00:21]}  Kh5 {[%clk 0:00:03]} 58. Qc5+ {[%clk 0:00:21]}  Kh4 {[%clk 0:00:03]} 59. Kxb7 {[%clk 0:00:21]}  Qb1+ {[%clk 0:00:02]} 60. Kxa7 {[%clk 0:00:22]}  Qxa2+ {[%clk 0:00:03]} 61. Kb7 {[%clk 0:00:23]}  Qb2+ {[%clk 0:00:03]} 62. Kc6 {[%clk 0:00:24]}  Qg2+ {[%clk 0:00:03]} 63. Qd5 {[%clk 0:00:24]}  Qc2+ {[%clk 0:00:03]} 64. Qc5 {[%clk 0:00:24]}  Qg2+ {[%clk 0:00:03]} 65. d5 {[%clk 0:00:25]}  Qg6+ {[%clk 0:00:03]} 66. d6 {[%clk 0:00:25]}  Qe4+ {[%clk 0:00:03]} 67. Qd5 {[%clk 0:00:26]}  Qa4+ {[%clk 0:00:04]} 68. Kc7 {[%clk 0:00:26]}  Qa7+ {[%clk 0:00:04]} 69. Qb7 {[%clk 0:00:27]}  Qc5+ {[%clk 0:00:04]} 70. Kd7 {[%clk 0:00:27]}  Qf5+ {[%clk 0:00:05]} 71. Ke7 {[%clk 0:00:26]}  Qh7+ {[%clk 0:00:05]} 72. Ke8 {[%clk 0:00:26]}  Qxb7 {[%clk 0:00:05]} 73. d7 {[%clk 0:00:27]}  Qc6 {[%clk 0:00:06]} 74. Ke7 {[%clk 0:00:28]}  Qe4+ {[%clk 0:00:06]} 75. Kd8 {[%clk 0:00:28]}  Qe5 {[%clk 0:00:06]} 76. Kc8 {[%clk 0:00:29]}  Qc5+ {[%clk 0:00:05]} 77. Kb8 {[%clk 0:00:29]}  Qd6+ {[%clk 0:00:05]} 78. Kc8 {[%clk 0:00:30]}  Qc6+ {[%clk 0:00:06]} 79. Kd8 {[%clk 0:00:31]}  Kg5 {[%clk 0:00:06]} 80. Ke7 {[%clk 0:00:32]}  Qe4+ {[%clk 0:00:07]} 81. Kf7 {[%clk 0:00:31]}  Qd5+ {[%clk 0:00:06]} 82. Ke7 {[%clk 0:00:32]}  Qe5+ {[%clk 0:00:06]} 83. Kf7 {[%clk 0:00:32]}  Qd6 {[%clk 0:00:06]} 84. Ke8 {[%clk 0:00:33]}  Qe6+ {[%clk 0:00:07]} 85. Kd8 {[%clk 0:00:34]}  Kf6 {[%clk 0:00:07]} 86. Kc7 {[%clk 0:00:35]}  Qc4+ {[%clk 0:00:07]} 0-1


[Site "https://www.chess.com"]

[Event "Titled Tuesday Blitz December 20 Early 2022"]
[White "bazar-wokzal"]
[Black "Battlecruiser_Operational"]
[WhiteElo "2582"]
[BlackElo "2428"]
[Result "0-1"]
[Round "02"]
[TimeControl "180+2"]
[Date "2022.12.20"]
[WhiteClock "0:00:12"]
[BlackClock "0:00:12"]

1. e4 {[%clk 0:03:00]}  e6 {[%clk 0:02:58]} 2. c4 {[%clk 0:02:59]}  d5 {[%clk 0:02:52]} 3. cxd5 {[%clk 0:02:58]}  exd5 {[%clk 0:02:53]} 4. Qb3 {[%clk 0:02:57]}  dxe4 {[%clk 0:02:37]} 5. Bc4 {[%clk 0:02:56]}  Qe7 {[%clk 0:02:32]} 6. Nc3 {[%clk 0:02:55]}  Nf6 {[%clk 0:02:31]} 7. d3 {[%clk 0:02:53]}  Nc6 {[%clk 0:02:29]} 8. Bg5 {[%clk 0:02:42]}  Nd4 {[%clk 0:02:19]} 9. Qa4+ {[%clk 0:02:38]}  Bd7 {[%clk 0:02:18]} 10. Bxf7+ {[%clk 0:02:37]}  Kxf7 {[%clk 0:02:15]} 11. Qxd4 {[%clk 0:02:37]}  exd3+ {[%clk 0:02:15]} 12. Kf1 {[%clk 0:02:35]}  Qd6 {[%clk 0:01:57]} 13. Nf3 {[%clk 0:02:02]}  Qxd4 {[%clk 0:01:50]} 14. Nxd4 {[%clk 0:02:02]}  c5 {[%clk 0:01:38]} 15. Nf3 {[%clk 0:02:02]}  Bd6 {[%clk 0:01:33]} 16. b3 {[%clk 0:00:50]}  h6 {[%clk 0:00:59]} 17. Bxf6 {[%clk 0:00:36]}  gxf6 {[%clk 0:01:00]} 18. Rd1 {[%clk 0:00:17]}  Bf5 {[%clk 0:00:59]} 19. Ne1 {[%clk 0:00:17]}  Be5 {[%clk 0:00:58]} 20. Nd5 {[%clk 0:00:15]}  Rhd8 {[%clk 0:00:46]} 21. Ne3 {[%clk 0:00:15]}  Bh7 {[%clk 0:00:40]} 22. g3 {[%clk 0:00:16]}  a5 {[%clk 0:00:29]} 23. Kg2 {[%clk 0:00:16]}  a4 {[%clk 0:00:29]} 24. Nf3 {[%clk 0:00:15]}  Bc3 {[%clk 0:00:20]} 25. Nd2 {[%clk 0:00:12]}  axb3 {[%clk 0:00:19]} 26. axb3 {[%clk 0:00:13]}  Ra2 {[%clk 0:00:18]} 27. Ndc4 {[%clk 0:00:13]}  b5 {[%clk 0:00:17]} 28. Nb6 {[%clk 0:00:13]}  Ra6 {[%clk 0:00:15]} 29. Nbd5 {[%clk 0:00:09]}  Be4+ {[%clk 0:00:15]} 30. f3 {[%clk 0:00:10]}  Bxd5 {[%clk 0:00:15]} 31. Rxd3 {[%clk 0:00:10]}  Bxf3+ {[%clk 0:00:15]} 32. Kxf3 {[%clk 0:00:11]}  Rxd3 {[%clk 0:00:15]} 33. Ke4 {[%clk 0:00:11]}  Rad6 {[%clk 0:00:14]} 34. Nf5 {[%clk 0:00:11]}  Rd7 {[%clk 0:00:13]} 35. Nxh6+ {[%clk 0:00:11]}  Kg6 {[%clk 0:00:13]} 36. Nf5 {[%clk 0:00:11]}  c4 {[%clk 0:00:13]} 37. bxc4 {[%clk 0:00:11]}  bxc4 {[%clk 0:00:14]} 38. h4 {[%clk 0:00:11]}  R7d5 {[%clk 0:00:13]} 39. h5+ {[%clk 0:00:11]}  Kh7 {[%clk 0:00:13]} 40. g4 {[%clk 0:00:11]}  Re5+ {[%clk 0:00:12]} 41. Kf4 {[%clk 0:00:12]}  Bd2+ {[%clk 0:00:12]} 0-1


[Site "https://www.chess.com"]

[Event "Titled Tuesday Blitz December 20 Early 2022"]
[White "deibittowers"]
[Black "Caisachess"]
[WhiteElo "2072"]
[BlackElo "2409"]
[Result "1-0"]
[Round "02"]
[TimeControl "180+2"]
[Date "2022.12.20"]
[WhiteClock "0:00:21"]
[BlackClock "0:00:34"]

1. e4 {[%clk 0:02:54]}  e5 {[%clk 0:02:55]} 2. Bc4 {[%clk 0:02:53]}  Nf6 {[%clk 0:02:53]} 3. Nc3 {[%clk 0:02:52]}  Nxe4 {[%clk 0:02:53]} 4. Qh5 {[%clk 0:02:51]}  Nd6 {[%clk 0:02:52]} 5. Qxe5+ {[%clk 0:02:49]}  Qe7 {[%clk 0:02:52]} 6. Qxe7+ {[%clk 0:02:48]}  Bxe7 {[%clk 0:02:53]} 7. Be2 {[%clk 0:02:46]}  Nf5 {[%clk 0:02:50]} 8. Nf3 {[%clk 0:02:39]}  c6 {[%clk 0:02:47]} 9. g4 {[%clk 0:02:32]}  Nh4 {[%clk 0:02:39]} 10. Nxh4 {[%clk 0:02:29]}  Bxh4 {[%clk 0:02:40]} 11. Ne4 {[%clk 0:02:18]}  Be7 {[%clk 0:02:38]} 12. d4 {[%clk 0:02:13]}  d5 {[%clk 0:02:38]} 13. Ng3 {[%clk 0:02:05]}  O-O {[%clk 0:02:35]} 14. Bf4 {[%clk 0:02:04]}  Nd7 {[%clk 0:02:33]} 15. f3 {[%clk 0:02:03]}  Re8 {[%clk 0:02:28]} 16. Kf2 {[%clk 0:02:03]}  Nf8 {[%clk 0:02:29]} 17. Bd3 {[%clk 0:02:02]}  Ne6 {[%clk 0:02:27]} 18. Be3 {[%clk 0:01:58]}  c5 {[%clk 0:02:25]} 19. c3 {[%clk 0:01:57]}  c4 {[%clk 0:02:23]} 20. Bc2 {[%clk 0:01:54]}  b5 {[%clk 0:02:24]} 21. a3 {[%clk 0:01:53]}  a5 {[%clk 0:02:23]} 22. Nf5 {[%clk 0:01:53]}  Bf8 {[%clk 0:02:22]} 23. Rhe1 {[%clk 0:01:47]}  Bd7 {[%clk 0:02:21]} 24. h4 {[%clk 0:01:40]}  b4 {[%clk 0:02:21]} 25. axb4 {[%clk 0:01:39]}  axb4 {[%clk 0:02:21]} 26. Bd2 {[%clk 0:01:20]}  b3 {[%clk 0:02:20]} 27. Rxa8 {[%clk 0:01:18]}  Rxa8 {[%clk 0:02:20]} 28. Bb1 {[%clk 0:01:18]}  Ra1 {[%clk 0:02:05]} 29. Ne3 {[%clk 0:01:14]}  Ra5 {[%clk 0:02:02]} 30. Ng2 {[%clk 0:01:07]}  Bd6 {[%clk 0:01:57]} 31. Ne3 {[%clk 0:00:56]}  Bc6 {[%clk 0:01:53]} 32. Nf5 {[%clk 0:00:55]}  Bf8 {[%clk 0:01:52]} 33. g5 {[%clk 0:00:51]}  g6 {[%clk 0:01:44]} 34. Ne3 {[%clk 0:00:50]}  Be7 {[%clk 0:01:37]} 35. Ng4 {[%clk 0:00:49]}  Kf8 {[%clk 0:01:35]} 36. Ne5 {[%clk 0:00:48]}  Bb7 {[%clk 0:01:32]} 37. Nd7+ {[%clk 0:00:41]}  Ke8 {[%clk 0:01:30]} 38. Ne5 {[%clk 0:00:42]}  Bd6 {[%clk 0:01:27]} 39. Ng4 {[%clk 0:00:39]}  Be7 {[%clk 0:01:21]} 40. f4 {[%clk 0:00:39]}  Bd6 {[%clk 0:01:07]} 41. f5 {[%clk 0:00:37]}  gxf5 {[%clk 0:01:06]} 42. Bxf5 {[%clk 0:00:37]}  Ra2 {[%clk 0:01:04]} 43. Bc1 {[%clk 0:00:34]}  Ke7 {[%clk 0:00:59]} 44. Nf6 {[%clk 0:00:33]}  h6 {[%clk 0:00:55]} 45. Ng8+ {[%clk 0:00:31]}  Kf8 {[%clk 0:00:52]} 46. Nxh6 {[%clk 0:00:31]}  Nxd4 {[%clk 0:00:50]} 47. cxd4 {[%clk 0:00:31]}  c3 {[%clk 0:00:51]} 48. Bd7 {[%clk 0:00:27]}  Be7 {[%clk 0:00:48]} 49. Nf5 {[%clk 0:00:26]}  cxb2 {[%clk 0:00:47]} 50. Bxb2 {[%clk 0:00:24]}  Rxb2+ {[%clk 0:00:47]} 51. Kf3 {[%clk 0:00:23]}  Rc2 {[%clk 0:00:34]} 52. Rxe7 {[%clk 0:00:22]}  b2 {[%clk 0:00:34]} 53. Re8# {[%clk 0:00:21]} 1-0


[Site "https://www.chess.com"]

[Event "Titled Tuesday Blitz December 20 Early 2022"]
[White "emeli_chess"]
[Black "Albano, Marco"]
[BlackFideId "801178"]
[WhiteElo "2405"]
[BlackElo "2291"]
[Result "1-0"]
[Round "02"]
[TimeControl "180+2"]
[Date "2022.12.20"]
[WhiteClock "0:00:32"]
[BlackClock "0:00:03"]

1. d4 {[%clk 0:03:00]}  Nf6 {[%clk 0:02:58]} 2. Bg5 {[%clk 0:02:59]}  Ne4 {[%clk 0:02:58]} 3. Bh4 {[%clk 0:02:59]}  d5 {[%clk 0:02:57]} 4. f3 {[%clk 0:02:58]}  Nf6 {[%clk 0:02:57]} 5. Bxf6 {[%clk 0:02:54]}  exf6 {[%clk 0:02:58]} 6. e3 {[%clk 0:02:53]}  Bd6 {[%clk 0:02:53]} 7. Ne2 {[%clk 0:02:46]}  O-O {[%clk 0:02:52]} 8. Ng3 {[%clk 0:02:40]}  f5 {[%clk 0:02:39]} 9. Bd3 {[%clk 0:02:31]}  Qh4 {[%clk 0:02:22]} 10. f4 {[%clk 0:02:29]}  Re8 {[%clk 0:02:09]} 11. O-O {[%clk 0:02:10]}  Rxe3 {[%clk 0:02:00]} 12. Bxf5 {[%clk 0:02:10]}  Bxf4 {[%clk 0:01:03]} 13. Bxc8 {[%clk 0:01:41]}  Rxg3 {[%clk 0:00:58]} 14. Rxf4 {[%clk 0:01:39]}  Qxf4 {[%clk 0:00:47]} 15. hxg3 {[%clk 0:01:39]}  Qe3+ {[%clk 0:00:47]} 16. Kh2 {[%clk 0:01:32]}  Nc6 {[%clk 0:00:21]} 17. Bh3 {[%clk 0:01:23]}  Re8 {[%clk 0:00:12]} 18. Nc3 {[%clk 0:01:21]}  Nxd4 {[%clk 0:00:10]} 19. Qd3 {[%clk 0:01:14]}  Qe5 {[%clk 0:00:07]} 20. Rd1 {[%clk 0:01:10]}  c5 {[%clk 0:00:07]} 21. Qf1 {[%clk 0:00:52]}  h5 {[%clk 0:00:05]} 22. Qf4 {[%clk 0:00:51]}  Qe7 {[%clk 0:00:01]} 23. Nxd5 {[%clk 0:00:48]}  Qe2 {[%clk 0:00:01]} 24. Rd2 {[%clk 0:00:45]}  Qe1 {[%clk 0:00:01]} 25. Rf2 {[%clk 0:00:38]}  f6 {[%clk 0:00:01]} 26. Nxf6+ {[%clk 0:00:35]}  gxf6 {[%clk 0:00:02]} 27. Qxf6 {[%clk 0:00:35]}  Rf8 {[%clk 0:00:02]} 28. Qxf8+ {[%clk 0:00:34]}  Kh7 {[%clk 0:00:03]} 29. Rf7+ {[%clk 0:00:33]}  Kg6 {[%clk 0:00:03]} 30. Qg7# {[%clk 0:00:32]} 1-0


[Site "https://www.chess.com"]

[Event "Titled Tuesday Blitz December 20 Early 2022"]
[White "googlegoom"]
[Black "Chessmissile07"]
[WhiteElo "2581"]
[BlackElo "2730"]
[Result "1-0"]
[Round "02"]
[TimeControl "180+2"]
[Date "2022.12.20"]
[WhiteClock "0:00:10"]
[BlackClock "0:00:16"]

1. Nf3 {[%clk 0:02:59]}  g6 {[%clk 0:02:59]} 2. d4 {[%clk 0:02:59]}  Bg7 {[%clk 0:02:59]} 3. b3 {[%clk 0:02:59]}  d6 {[%clk 0:02:55]} 4. Bb2 {[%clk 0:02:58]}  b6 {[%clk 0:02:52]} 5. e3 {[%clk 0:02:58]}  Bb7 {[%clk 0:02:52]} 6. Be2 {[%clk 0:02:58]}  Nd7 {[%clk 0:02:51]} 7. O-O {[%clk 0:02:59]}  e6 {[%clk 0:02:49]} 8. c4 {[%clk 0:02:59]}  Ne7 {[%clk 0:02:49]} 9. Nbd2 {[%clk 0:02:59]}  O-O {[%clk 0:02:49]} 10. Qc2 {[%clk 0:02:59]}  c5 {[%clk 0:02:47]} 11. Rfd1 {[%clk 0:02:59]}  Qc7 {[%clk 0:02:47]} 12. Rac1 {[%clk 0:02:58]}  Rad8 {[%clk 0:02:46]} 13. Qb1 {[%clk 0:02:58]}  Qb8 {[%clk 0:02:44]} 14. Qa1 {[%clk 0:02:58]}  Qa8 {[%clk 0:02:40]} 15. Nb1 {[%clk 0:02:55]}  cxd4 {[%clk 0:02:18]} 16. Bxd4 {[%clk 0:02:56]}  Bxd4 {[%clk 0:02:17]} 17. Qxd4 {[%clk 0:02:57]}  Nf5 {[%clk 0:02:17]} 18. Qb2 {[%clk 0:02:49]}  Nc5 {[%clk 0:02:12]} 19. Nc3 {[%clk 0:02:47]}  Rd7 {[%clk 0:02:07]} 20. Rd2 {[%clk 0:02:41]}  Rfd8 {[%clk 0:02:07]} 21. Rcd1 {[%clk 0:02:42]}  h5 {[%clk 0:01:55]} 22. Ne1 {[%clk 0:02:39]}  h4 {[%clk 0:01:42]} 23. h3 {[%clk 0:02:36]}  a5 {[%clk 0:01:36]} 24. Bf3 {[%clk 0:02:24]}  Bc6 {[%clk 0:01:18]} 25. Bxc6 {[%clk 0:02:18]}  Qxc6 {[%clk 0:01:18]} 26. Nf3 {[%clk 0:02:18]}  Ne4 {[%clk 0:01:08]} 27. Nxe4 {[%clk 0:02:11]}  Qxe4 {[%clk 0:01:09]} 28. Nd4 {[%clk 0:02:04]}  Ne7 {[%clk 0:00:54]} 29. Nb5 {[%clk 0:02:03]}  d5 {[%clk 0:00:49]} 30. Qf6 {[%clk 0:01:47]}  Nc6 {[%clk 0:00:20]} 31. cxd5 {[%clk 0:01:04]}  Rxd5 {[%clk 0:00:19]} 32. Nc3 {[%clk 0:01:04]}  Rxd2 {[%clk 0:00:16]} 33. Rxd2 {[%clk 0:00:49]}  Qf5 {[%clk 0:00:13]} 34. Rxd8+ {[%clk 0:00:48]}  Nxd8 {[%clk 0:00:14]} 35. Qxd8+ {[%clk 0:00:49]}  Kg7 {[%clk 0:00:14]} 36. Qd4+ {[%clk 0:00:48]}  e5 {[%clk 0:00:15]} 37. Qe4 {[%clk 0:00:47]}  Qf6 {[%clk 0:00:13]} 38. Nd5 {[%clk 0:00:45]}  Qd6 {[%clk 0:00:13]} 39. Qf3 {[%clk 0:00:41]}  f5 {[%clk 0:00:11]} 40. e4 {[%clk 0:00:37]}  f4 {[%clk 0:00:12]} 41. Qg4 {[%clk 0:00:34]}  Qd8 {[%clk 0:00:11]} 42. Qe6 {[%clk 0:00:32]}  f3 {[%clk 0:00:12]} 43. Qe7+ {[%clk 0:00:22]}  Qxe7 {[%clk 0:00:11]} 44. Nxe7 {[%clk 0:00:23]}  fxg2 {[%clk 0:00:12]} 45. Nd5 {[%clk 0:00:20]}  b5 {[%clk 0:00:12]} 46. a4 {[%clk 0:00:18]}  bxa4 {[%clk 0:00:10]} 47. bxa4 {[%clk 0:00:19]}  Kh6 {[%clk 0:00:10]} 48. Kxg2 {[%clk 0:00:17]}  Kg5 {[%clk 0:00:10]} 49. Kf3 {[%clk 0:00:17]}  Kh5 {[%clk 0:00:11]} 50. Nb6 {[%clk 0:00:17]}  Kg5 {[%clk 0:00:11]} 51. Nc4 {[%clk 0:00:17]}  Kf6 {[%clk 0:00:12]} 52. Nxa5 {[%clk 0:00:17]}  Kg5 {[%clk 0:00:09]} 53. Nc4 {[%clk 0:00:17]}  Kh5 {[%clk 0:00:10]} 54. a5 {[%clk 0:00:17]}  g5 {[%clk 0:00:11]} 55. a6 {[%clk 0:00:17]}  Kg6 {[%clk 0:00:12]} 56. a7 {[%clk 0:00:17]}  Kh6 {[%clk 0:00:13]} 57. a8=Q {[%clk 0:00:17]}  Kh5 {[%clk 0:00:13]} 58. Nxe5 {[%clk 0:00:13]}  g4+ {[%clk 0:00:14]} 59. Nxg4 {[%clk 0:00:12]}  Kg5 {[%clk 0:00:14]} 60. Qa5+ {[%clk 0:00:11]}  Kg6 {[%clk 0:00:14]} 61. Qf5+ {[%clk 0:00:12]}  Kg7 {[%clk 0:00:15]} 62. Qf6+ {[%clk 0:00:12]}  Kh7 {[%clk 0:00:15]} 63. Qxh4+ {[%clk 0:00:11]}  Kg6 {[%clk 0:00:15]} 64. Qf6+ {[%clk 0:00:10]}  Kh5 {[%clk 0:00:16]} 65. Qh6# {[%clk 0:00:10]} 1-0


[Site "https://www.chess.com"]

[Event "Titled Tuesday Blitz December 20 Early 2022"]
[White "guillembaches"]
[Black "Lim, Seng Hoo"]
[BlackFideId "5800021"]
[WhiteElo "2464"]
[BlackElo "2440"]
[Result "1-0"]
[Round "02"]
[TimeControl "180+2"]
[Date "2022.12.20"]
[WhiteClock "0:01:15"]
[BlackClock "0:01:12"]

1. e4 {[%clk 0:03:00]}  c5 {[%clk 0:02:59]} 2. Nf3 {[%clk 0:03:01]}  d6 {[%clk 0:02:58]} 3. d4 {[%clk 0:03:01]}  cxd4 {[%clk 0:02:58]} 4. Nxd4 {[%clk 0:03:02]}  a6 {[%clk 0:02:57]} 5. c4 {[%clk 0:03:00]}  Nf6 {[%clk 0:02:56]} 6. Nc3 {[%clk 0:03:00]}  e6 {[%clk 0:02:55]} 7. Be2 {[%clk 0:03:00]}  Be7 {[%clk 0:02:55]} 8. O-O {[%clk 0:03:00]}  O-O {[%clk 0:02:55]} 9. Be3 {[%clk 0:03:01]}  b6 {[%clk 0:02:54]} 10. a4 {[%clk 0:02:58]}  Bb7 {[%clk 0:02:54]} 11. f3 {[%clk 0:02:58]}  Nbd7 {[%clk 0:02:53]} 12. a5 {[%clk 0:02:58]}  bxa5 {[%clk 0:02:52]} 13. Nb3 {[%clk 0:02:58]}  Rc8 {[%clk 0:02:40]} 14. Nxa5 {[%clk 0:02:55]}  Ba8 {[%clk 0:02:40]} 15. Qd2 {[%clk 0:02:51]}  Qc7 {[%clk 0:02:18]} 16. Rfc1 {[%clk 0:02:50]}  Rfd8 {[%clk 0:02:18]} 17. Bf1 {[%clk 0:02:43]}  Nc5 {[%clk 0:02:13]} 18. b4 {[%clk 0:02:40]}  Nb7 {[%clk 0:02:12]} 19. Na4 {[%clk 0:02:21]}  Nxa5 {[%clk 0:02:10]} 20. bxa5 {[%clk 0:02:22]}  Nd7 {[%clk 0:02:03]} 21. Nb6 {[%clk 0:02:19]}  Rb8 {[%clk 0:02:02]} 22. Rab1 {[%clk 0:02:10]}  Bc6 {[%clk 0:01:56]} 23. Nxd7 {[%clk 0:02:05]}  Qxd7 {[%clk 0:01:55]} 24. Bb6 {[%clk 0:02:03]}  Rdc8 {[%clk 0:01:53]} 25. c5 {[%clk 0:02:01]}  dxc5 {[%clk 0:01:52]} 26. Qxd7 {[%clk 0:01:58]}  Bxd7 {[%clk 0:01:52]} 27. Bxa6 {[%clk 0:01:57]}  Re8 {[%clk 0:01:47]} 28. Bc4 {[%clk 0:01:42]}  g6 {[%clk 0:01:41]} 29. a6 {[%clk 0:01:40]}  Bd6 {[%clk 0:01:26]} 30. Rd1 {[%clk 0:01:32]}  Rxb6 {[%clk 0:01:13]} 31. Rxb6 {[%clk 0:01:28]}  Bc7 {[%clk 0:01:14]} 32. Rb7 {[%clk 0:01:24]}  Ba4 {[%clk 0:01:14]} 33. Ra1 {[%clk 0:01:17]}  Be5 {[%clk 0:01:11]} 34. Rxa4 {[%clk 0:01:16]}  Bd4+ {[%clk 0:01:12]} 35. Kf1 {[%clk 0:01:15]} 1-0


[Site "https://www.chess.com"]